fUST/lending_fUST_20241213
["ID","MTS","AMOUNT","RATE_DAILY","PERIOD"]
[345170912,1734073898581,-340.72,0.000296,31]
[345170913,1734073898591,-340.72,0.000296,31]
[345170914,1734073898600,-250.0,0.00029621,5]
[345170915,1734073898609,-3620.204189,0.0002972,2]
[345170916,1734073898619,-8647.52697768,0.0002975,3]
[345170917,1734073898628,-300.0,0.000298,2]
[345170918,1734073898638,-2000.0,0.000298,2]
[345170919,1734073898650,-4304.41919238,0.000298,7]
[345170920,1734073898659,-5000.0,0.000298,120]
[345170921,1734073898669,-340.72,0.000298,31]
[345170922,1734073898678,-340.72,0.000298,31]
[345170923,1734073898690,-340.72,0.000298,31]
[345170924,1734073898699,-340.72,0.000298,31]
[345170925,1734073898708,-340.72,0.000298,31]
[345170926,1734073898718,-340.72,0.000298,31]
[345170927,1734073898727,-340.72,0.000298,31]
[345170928,1734073898737,-340.72,0.000298,31]
[345170929,1734073898747,-340.72,0.000298,31]
[345170930,1734073898756,-340.72,0.000298,31]
[345170931,1734073898766,-340.72,0.000298,31]
[345170932,1734073898775,-340.72,0.000298,31]
[345170933,1734073898784,-340.72,0.000298,31]
[345170934,1734073898794,-340.72,0.000298,31]
[345170935,1734073898803,-340.72,0.000298,31]
[345170936,1734073898813,-340.72,0.000298,31]
[345170937,1734073898823,-340.72,0.000298,31]
[345170938,1734073898832,-340.72,0.000298,31]
[345170939,1734073898841,-340.72,0.000298,31]
[345170940,1734073898851,-340.72,0.000298,31]
[345170941,1734073898861,-340.72,0.000298,31]
[345170942,1734073898870,-340.72,0.000298,31]
[345170943,1734073898880,-340.72,0.000298,31]
[345170944,1734073898889,-340.72,0.000298,31]
[345170945,1734073898899,-582.77835107,0.00029801,2]
[345170946,1734073898908,-500.0,0.00029808,2]
[345170947,1734073898917,-620.19,0.00029863,7]
[345170948,1734073898927,-620.19,0.00029863,7]
[345170949,1734073898936,-620.19,0.00029863,7]
[345170950,1734073898945,-620.19,0.00029863,7]
[345170951,1734073898955,-620.19,0.00029863,7]
[345170952,1734073898964,-620.19,0.00029863,7]
[345170953,1734073898973,-620.19,0.00029863,7]
[345170954,1734073898982,-620.19,0.00029863,7]
[345170955,1734073898992,-620.19,0.00029863,7]
[345170956,1734073899001,-620.19,0.00029863,7]
[345170957,1734073899010,-620.19,0.00029863,7]
[345170958,1734073899020,-620.19,0.00029863,7]
[345170959,1734073899029,-620.19,0.00029863,7]
[345170960,1734073899038,-620.19,0.00029863,7]
[345170961,1734073899048,-620.19,0.00029863,7]
[345170962,1734073899057,-620.19,0.00029863,7]
[345170963,1734073899067,-620.19,0.00029863,7]
[345170964,1734073899076,-620.19,0.00029863,7]
[345170965,1734073899085,-620.19,0.00029863,7]
[345170966,1734073899094,-620.19,0.00029863,7]
[345170967,1734073899103,-620.19,0.00029863,7]
[345170968,1734073899113,-620.19,0.00029863,7]
[345170969,1734073899123,-620.19,0.00029863,7]
[345170970,1734073899132,-620.40279879,0.00029863,7]
[345170971,1734073899142,-717.54,0.00029863,7]
[345170972,1734073899152,-526.38,0.00029863,7]
[345170973,1734073899161,-500.0,0.00029863,7]
[345170974,1734073899171,-1060.98,0.00029863,7]
[345170975,1734073899180,-500.0,0.00029863,7]
[345170976,1734073899189,-504.17,0.00029863,7]
[345170977,1734073899199,-506.77,0.00029863,7]
[345170978,1734073899208,-167.85543162,0.00029863,7]
[345170979,1734073899218,-500.0,0.00029863,7]
[345170980,1734073899227,-500.0,0.00029863,7]
[345170981,1734073899236,-500.0,0.00029863,7]
[345170982,1734073899246,-710.23,0.00029863,7]
[345170983,1734073899255,-341.49293266,0.00029863,7]
[345170984,1734073899265,-500.0,0.00029863,7]
[345170985,1734073899274,-712.31,0.00029863,7]
[345170986,1734073899284,-540.72,0.00029863,7]
[345170987,1734073899293,-779.87,0.00029863,7]
[345170988,1734073899303,-500.0,0.00029863,7]
[345170989,1734073899312,-500.0,0.00029863,7]
[345170990,1734073899322,-500.0,0.00029863,7]
[345170991,1734073899331,-550.49,0.00029863,7]
[345170992,1734073899340,-875.69,0.00029863,7]
[345170993,1734073899350,-500.0,0.00029863,7]
[345170994,1734073899359,-718.22,0.00029863,7]
[345170995,1734073899369,-1639.41,0.00029863,7]
[345170996,1734073899378,-500.0,0.00029863,7]
[345170997,1734073899388,-500.0,0.00029863,7]
[345170998,1734073899400,-1045.63,0.00029863,7]
[345170999,1734073899415,-926.35,0.00029863,7]
[345171000,1734073899424,-500.0,0.00029863,7]
[345171001,1734073899433,-500.0,0.00029863,7]
[345171002,1734073899442,-1759.92,0.00029863,7]
[345171003,1734073899451,-500.0,0.00029863,7]
[345171004,1734073899463,-500.0,0.00029863,7]
[345171005,1734073899472,-541.72,0.00029863,7]
[345171006,1734073899482,-500.0,0.00029863,7]
[345171007,1734073899492,-500.0,0.00029863,7]
[345171008,1734073899503,-512.94,0.00029863,7]
[345171009,1734073899512,-609.25,0.00029863,7]
[345171010,1734073899522,-866.24,0.00029863,7]
[345171011,1734073899533,-583.41,0.00029863,7]
[345171012,1734073899543,-598.9,0.00029863,7]
[345171013,1734073899553,-1184.65,0.00029863,7]
[345171014,1734073899562,-534.17,0.00029863,7]
[345171015,1734073899572,-967.68,0.00029863,7]
[345171016,1734073899581,-500.0,0.00029863,7]
[345171017,1734073899590,-500.0,0.00029863,7]
[345171018,1734073899600,-580.76960955,0.00029863,7]
[345171019,1734073899609,-1372.64,0.00029863,7]
[345171020,1734073899618,-500.0,0.00029863,7]
[345171021,1734073899787,-500.0,0.00029863,7]
[345171022,1734073899797,-1188.86,0.00029863,7]
[345171023,1734073899807,-500.0,0.00029863,7]
[345171024,1734073899816,-500.0,0.00029863,7]
[345171025,1734073899825,-983.86,0.00029863,7]
[345171026,1734073899835,-1029.45,0.00029863,7]
[345171027,1734073899844,-500.0,0.00029863,7]
[345171028,1734073899853,-500.0,0.00029863,7]
[345171029,1734073899863,-500.0,0.00029863,7]
[345171030,1734073899872,-500.0,0.00029863,7]
[345171031,1734073899882,-625.88,0.00029863,7]
[345171032,1734073899893,-500.06777896,0.00029863,7]
[345171033,1734073899903,-500.0,0.00029863,7]
[345171034,1734073899912,-500.0,0.00029863,7]
[345171035,1734073899921,-539.73,0.00029863,7]
[345171036,1734073899931,-500.0,0.00029863,7]
[345171037,1734073899941,-500.0,0.00029863,7]
[345171038,1734073899950,-500.0,0.00029863,7]
[345171039,1734073899960,-500.0,0.00029863,7]
[345171040,1734073899969,-1122.36,0.00029863,7]
[345171041,1734073899978,-500.0,0.00029863,7]
[345171042,1734073899987,-754.87,0.00029863,7]
[345171043,1734073899997,-500.0,0.00029863,7]
[345171044,1734073900006,-987.16,0.00029863,7]
[345171045,1734073900016,-500.0,0.00029863,7]
[345171046,1734073900025,-500.0,0.00029863,7]
[345171047,1734073900035,-500.0,0.00029863,7]
[345171048,1734073900045,-620.95914437,0.00029863,2]
[345171049,1734073900055,-500.0,0.00029863,7]
[345171050,1734073900064,-764.89,0.00029863,7]
[345171051,1734073900073,-500.0,0.00029863,7]
[345171052,1734073900082,-500.0,0.00029863,7]
[345171053,1734073900092,-748.21,0.00029863,7]
[345171054,1734073900102,-891.63,0.00029863,7]
[345171055,1734073900111,-1012.58,0.00029863,7]
[345171056,1734073900120,-500.0,0.00029863,7]
[345171057,1734073900130,-500.0,0.00029863,7]
[345171058,1734073900140,-1562.4,0.00029863,7]
[345171059,1734073900151,-500.0,0.00029863,7]
[345171060,1734073900161,-500.0,0.00029863,7]
[345171061,1734073900170,-500.0,0.00029863,7]
[345171062,1734073900180,-844.87,0.00029863,7]
[345171063,1734073900190,-500.0,0.00029863,7]
[345171064,1734073900199,-861.33,0.00029863,7]
[345171065,1734073900208,-1079.28,0.00029863,7]
[345171066,1734073900217,-500.0,0.00029863,7]
[345171067,1734073900227,-500.0,0.00029863,7]
[345171068,1734073900236,-642.13,0.00029863,7]
[345171069,1734073900246,-580.55,0.00029863,7]
[345171070,1734073900256,-1754.92,0.00029863,7]
[345171071,1734073900264,-500.0,0.00029863,7]
[345171072,1734073900274,-500.0,0.00029863,7]
[345171073,1734073900284,-500.0,0.00029863,7]
[345171074,1734073900293,-500.0,0.00029863,7]
[345171075,1734073900302,-575.38,0.00029863,7]
[345171076,1734073900312,-522.58788475,0.00029863,7]
[345171077,1734073900322,-1597.88,0.00029863,7]
[345171078,1734073900332,-545.17,0.00029863,7]
[345171079,1734073900342,-1408.4,0.00029863,7]
[345171080,1734073900351,-612.01,0.00029863,7]
[345171081,1734073900360,-1493.83,0.00029863,7]
[345171082,1734073900370,-710.98,0.00029863,7]
[345171083,1734073900379,-1455.91,0.00029863,7]
[345171084,1734073900389,-500.0,0.00029863,7]
[345171085,1734073900400,-500.0,0.00029863,7]
[345171086,1734073900410,-500.0,0.00029863,7]
[345171087,1734073900420,-1031.95,0.00029863,7]
[345171088,1734073900429,-500.0,0.00029863,7]
[345171089,1734073900439,-500.0,0.00029863,7]
[345171090,1734073900448,-500.0,0.00029863,7]
[345171091,1734073900458,-930.78,0.00029863,7]
[345171092,1734073900470,-500.0,0.00029863,7]
[345171093,1734073900480,-500.0,0.00029863,7]
[345171094,1734073900490,-500.0,0.00029863,7]
[345171095,1734073900499,-604.235571,0.00029863,7]
[345171096,1734073900508,-750.66,0.00029863,7]
[345171097,1734073900518,-500.0,0.00029863,7]
[345171098,1734073900527,-742.52,0.00029863,7]
[345171099,1734073900537,-581.53,0.00029863,7]
[345171100,1734073900547,-500.0,0.00029863,7]
[345171101,1734073900556,-500.0,0.00029863,7]
[345171102,1734073900566,-500.0,0.00029863,7]
[345171103,1734073900575,-685.0,0.00029863,7]
[345171104,1734073900585,-561.92,0.00029863,7]
[345171105,1734073900594,-500.69,0.00029863,7]
[345171106,1734073900603,-611.51,0.00029863,7]
[345171107,1734073900613,-560.45,0.00029863,7]
[345171108,1734073900623,-500.0,0.00029863,7]
[345171109,1734073900633,-500.0,0.00029863,7]
[345171110,1734073900644,-500.0,0.00029863,7]
[345171111,1734073900659,-586.35,0.00029863,7]
[345171112,1734073900669,-671.76,0.00029863,7]
[345171113,1734073900679,-821.87,0.00029863,7]
[345171114,1734073900688,-763.18,0.00029863,7]
[345171115,1734073900697,-500.0,0.00029863,7]
[345171116,1734073900707,-500.0,0.00029863,7]
[345171117,1734073900717,-500.0,0.00029863,7]
[345171118,1734073900726,-500.0,0.00029863,7]
[345171119,1734073900736,-500.0,0.00029863,7]
[345171120,1734073900746,-500.0,0.00029863,7]
[345171121,1734073900755,-1939.32,0.00029863,7]
[345171122,1734073900765,-500.0,0.00029863,7]
[345171123,1734073900774,-791.43,0.00029863,7]
[345171124,1734073900784,-854.56,0.00029863,7]
[345171125,1734073900793,-613.3,0.00029863,7]
[345171126,1734073900802,-500.0,0.00029863,7]
[345171127,1734073900812,-500.0,0.00029863,7]
[345171128,1734073900822,-500.0,0.00029863,7]
[345171129,1734073900832,-781.05,0.00029863,7]
[345171130,1734073900842,-500.0,0.00029863,7]
[345171131,1734073900852,-500.0,0.00029863,7]
[345171132,1734073900862,-1549.05,0.00029863,7]
[345171133,1734073900872,-500.0,0.00029863,7]
[345171134,1734073900882,-500.0,0.00029863,7]
[345171135,1734073900894,-500.0,0.00029863,7]
[345171136,1734073900904,-1117.3,0.00029863,7]
[345171137,1734073900913,-500.0,0.00029863,7]
[345171138,1734073900923,-1000.0,0.00029863,2]
[345171139,1734073900933,-500.0,0.00029863,7]
[345171140,1734073900943,-500.0,0.00029863,7]
[345171141,1734073900953,-507.36283774,0.00029863,7]
[345171142,1734073900962,-918.3,0.00029863,7]
[345171143,1734073900972,-1626.18,0.00029863,7]
[345171144,1734073900981,-500.0,0.00029863,7]
[345171145,1734073900991,-500.0,0.00029863,7]
[345171146,1734073901001,-500.0,0.00029863,7]
[345171147,1734073901011,-500.0,0.00029863,7]
[345171148,1734073901020,-500.0,0.00029863,7]
[345171149,1734073901030,-531.23512806,0.00029863,7]
[345171150,1734073901040,-661.48,0.00029863,7]
[345171151,1734073901050,-500.0,0.00029863,7]
[345171152,1734073901059,-168.0,0.00029863,7]
[345171153,1734073901069,-2467.25,0.00029863,7]
[345171154,1734073901078,-854.23,0.00029863,7]
[345171155,1734073901088,-576.59,0.00029863,7]
[345171156,1734073901098,-596.77,0.00029863,7]
[345171157,1734073901107,-500.0,0.00029863,7]
[345171158,1734073901116,-500.0,0.00029863,7]
[345171159,1734073901125,-500.0,0.00029863,7]
[345171160,1734073901135,-504.74,0.00029863,7]
[345171161,1734073901146,-2075.55,0.00029863,7]
[345171162,1734073901156,-500.0,0.00029863,7]
[345171163,1734073901165,-2144.24,0.00029863,7]
[345171164,1734073901174,-500.0,0.00029863,7]
[345171165,1734073901183,-598.18,0.00029863,7]
[345171166,1734073901193,-504.29,0.00029863,7]
[345171167,1734073901203,-500.0,0.00029863,7]
[345171168,1734073901213,-500.0,0.00029863,7]
[345171169,1734073901223,-500.0,0.00029863,7]
[345171170,1734073901232,-695.31,0.00029863,7]
[345171171,1734073901242,-551.25,0.00029863,7]
[345171172,1734073901252,-1042.61,0.00029863,7]
[345171173,1734073901262,-500.0,0.00029863,7]
[345171174,1734073901272,-500.0,0.00029863,7]
[345171175,1734073901281,-500.0,0.00029863,7]
[345171176,1734073901290,-500.0,0.00029863,7]
[345171177,1734073901300,-546.19378576,0.00029863,7]
[345171178,1734073901309,-1132.49,0.00029863,7]
[345171179,1734073901318,-500.0,0.00029863,7]
[345171180,1734073901331,-848.29,0.00029863,7]
[345171181,1734073901341,-554.26,0.00029863,7]
[345171182,1734073901351,-500.0,0.00029863,7]
[345171183,1734073901361,-742.65,0.00029863,7]
[345171184,1734073901370,-500.0,0.00029863,7]
[345171185,1734073901380,-793.69,0.00029863,7]
[345171186,1734073901389,-500.0,0.00029863,7]
[345171187,1734073901400,-500.0,0.00029863,7]
[345171188,1734073901411,-660.24,0.00029863,7]
[345171189,1734073901420,-959.74,0.00029863,7]
[345171190,1734073901429,-500.0,0.00029863,7]
[345171191,1734073901439,-628.73,0.00029863,7]
[345171192,1734073901448,-586.60745974,0.00029863,7]
[345171193,1734073901458,-500.0,0.00029863,7]
[345171194,1734073901471,-913.29,0.00029863,7]
[345171195,1734073901481,-769.48,0.00029863,7]
[345171196,1734073901491,-687.94,0.00029863,7]
[345171197,1734073901501,-500.0,0.00029863,7]
[345171198,1734073901514,-500.0,0.00029863,7]
[345171199,1734073901524,-1226.78,0.00029863,7]
[345171200,1734073901534,-1239.0,0.00029863,7]
[345171201,1734073901546,-500.0,0.00029863,7]
[345171202,1734073901557,-555.96,0.00029863,7]
[345171203,1734073901566,-500.0,0.00029863,7]
[345171204,1734073901576,-934.39,0.00029863,7]
[345171205,1734073901585,-500.0,0.00029863,7]
[345171206,1734073901594,-757.27,0.00029863,7]
[345171207,1734073901604,-1702.35,0.00029863,7]
[345171208,1734073901615,-500.0,0.00029863,7]
[345171209,1734073901625,-694.34,0.00029863,7]
[345171210,1734073901634,-737.45,0.00029863,7]
[345171211,1734073901645,-851.51,0.00029863,7]
[345171212,1734073901654,-2417.87,0.00029863,7]
[345171213,1734073901664,-991.68,0.00029863,7]
[345171214,1734073901674,-1353.92,0.00029863,7]
[345171215,1734073901684,-516.48,0.00029863,7]
[345171216,1734073901694,-2043.23,0.00029863,7]
[345171217,1734073901704,-500.0,0.00029863,7]
[345171218,1734073901714,-500.0,0.00029863,7]
[345171219,1734073901725,-500.0,0.00029863,7]
[345171220,1734073901734,-872.8,0.00029863,7]
[345171221,1734073901744,-994.67,0.00029863,7]
[345171222,1734073901755,-771.58,0.00029863,7]
[345171223,1734073901765,-1208.81,0.00029863,7]
[345171224,1734073901774,-999.45,0.00029863,7]
[345171226,1734073901784,-1400.1,0.00029863,7]
[345171227,1734073901795,-662.17,0.00029863,7]
[345171228,1734073901805,-1632.88,0.00029863,7]
[345171229,1734073901815,-500.0,0.00029863,7]
[345171230,1734073901824,-500.0,0.00029863,7]
[345171231,1734073901834,-3598.79,0.00029863,7]
[345171232,1734073901843,-1161.27,0.00029863,7]
[345171233,1734073901853,-500.0,0.00029863,7]
[345171234,1734073901862,-500.0,0.00029863,7]
[345171235,1734073901873,-761.46,0.00029863,7]
[345171236,1734073901884,-2849.29,0.00029863,7]
[345171237,1734073901894,-500.0,0.00029863,7]
[345171238,1734073901904,-1360.35,0.00029863,7]
[345171239,1734073901914,-830.13,0.00029863,7]
[345171240,1734073901924,-500.0,0.00029863,7]
[345171241,1734073901934,-552.29,0.00029863,7]
[345171242,1734073901943,-1830.05,0.00029863,7]
[345171243,1734073901953,-500.0,0.00029863,7]
[345171244,1734073901962,-500.0,0.00029863,7]
[345171245,1734073901972,-665.66,0.00029863,2]
[345171246,1734073901982,-10350.06,0.00029863,7]
[345171247,1734073901991,-500.0,0.00029863,7]
[345171248,1734073902000,-2352.18,0.00029863,7]
[345171249,1734073902010,-1088.5,0.00029863,7]
[345171250,1734073902019,-884.8,0.00029863,7]
[345171251,1734073902030,-1721.54,0.00029863,7]
[345171252,1734073902041,-2055.1,0.00029863,7]
[345171253,1734073902050,-524.23,0.00029863,7]
[345171254,1734073902059,-500.0,0.00029863,7]
[345171255,1734073902069,-500.0,0.00029863,7]
[345171256,1734073902078,-2000.0,0.00029863,7]
[345171257,1734073902088,-1393.08,0.00029863,7]
[345171258,1734073902098,-759.46,0.00029863,7]
[345171259,1734073902107,-1231.64,0.00029863,7]
[345171260,1734073902117,-1043.14,0.00029863,7]
[345171261,1734073902127,-173.1358149,0.00029863,7]
[345171262,1734073902136,-500.0,0.00029863,7]
[345171263,1734073902148,-500.0,0.00029863,7]
[345171264,1734073902158,-500.0,0.00029863,7]
[345171265,1734073902167,-757.36,0.00029863,7]
[345171266,1734073902233,-597.21,0.00029863,7]
[345171267,1734073902244,-855.14,0.00029863,7]
[345171268,1734073902257,-774.23,0.00029863,7]
[345171269,1734073902268,-500.0,0.00029863,7]
[345171270,1734073902277,-544.56,0.00029863,7]
[345171271,1734073902287,-383.45546399,0.00029863,7]
[345171272,1734073902297,-500.0,0.00029863,7]
[345171273,1734073902307,-500.0,0.00029863,7]
[345171274,1734073902316,-14673.87,0.00029863,7]
[345171275,1734073902326,-874.46,0.00029863,7]
[345171276,1734073902335,-571.74,0.00029863,7]
[345171277,1734073902348,-500.0,0.00029863,7]
[345171278,1734073902357,-500.0,0.00029863,7]
[345171279,1734073902367,-1325.51,0.00029863,7]
[345171280,1734073902377,-500.0,0.00029863,7]
[345171281,1734073902386,-500.0,0.00029863,7]
[345171282,1734073902396,-617.0,0.00029863,7]
[345171283,1734073902405,-500.0,0.00029863,7]
[345171284,1734073902414,-648.28994297,0.00029863,7]
[345171285,1734073902422,-500.0,0.00029863,7]
[345171286,1734073902432,-500.0,0.00029863,7]
[345171287,1734073902442,-512.19336957,0.00029863,7]
[345171288,1734073902452,-1057.12,0.00029863,7]
[345171289,1734073902464,-2374.65,0.00029863,7]
[345171290,1734073902474,-500.0,0.00029863,7]
[345171291,1734073902483,-609.04,0.00029863,7]
[345171292,1734073902493,-650.06,0.00029863,7]
[345171293,1734073902502,-1403.98,0.00029863,7]
[345171294,1734073902512,-500.0,0.00029863,7]
[345171295,1734073902521,-585.25,0.00029863,7]
[345171296,1734073902531,-1011.92,0.00029863,7]
[345171297,1734073902541,-649.55,0.00029863,7]
[345171298,1734073902550,-500.0,0.00029863,7]
[345171299,1734073902559,-500.0,0.00029863,7]
[345171300,1734073902569,-750.37,0.00029863,7]
[345171301,1734073902579,-1649.58,0.00029863,7]
[345171302,1734073902588,-1113.45,0.00029863,7]
[345171303,1734073902597,-2099.54,0.00029863,7]
[345171304,1734073902606,-500.0,0.00029863,7]
[345171305,1734073902615,-500.0,0.00029863,7]
[345171306,1734073902624,-1520.43,0.00029863,7]
[345171307,1734073902633,-802.05,0.00029863,7]
[345171308,1734073902642,-18649.54,0.00029863,7]
[345171309,1734073902655,-1754.12,0.00029863,7]
[345171310,1734073902664,-500.0,0.00029863,7]
[345171311,1734073902673,-500.0,0.00029863,7]
[345171312,1734073902683,-2347.12,0.00029863,7]
[345171313,1734073902693,-569.82,0.00029863,7]
[345171314,1734073902703,-657.49,0.00029863,7]
[345171315,1734073902712,-500.0,0.00029863,7]
[345171316,1734073902722,-500.0,0.00029863,7]
[345171317,1734073902731,-1837.67,0.00029863,7]
[345171318,1734073902740,-500.0,0.00029863,7]
[345171319,1734073902749,-176.90339322,0.00029863,7]
[345171320,1734073902759,-1076.97,0.00029863,7]
[345171321,1734073902767,-1669.83,0.00029863,7]
[345171322,1734073902776,-500.0,0.00029863,7]
[345171323,1734073902785,-500.0,0.00029863,7]
[345171324,1734073902795,-805.2,0.00029863,7]
[345171325,1734073902804,-500.0,0.00029863,7]
[345171326,1734073902813,-1014.65,0.00029863,7]
[345171327,1734073902822,-5241.44,0.00029863,7]
[345171328,1734073902833,-637.87,0.00029863,7]
[345171329,1734073902842,-500.0,0.00029863,7]
[345171330,1734073902851,-7567.01,0.00029863,7]
[345171331,1734073902861,-613.66,0.00029863,7]
[345171332,1734073902870,-3845.18,0.00029863,7]
[345171333,1734073902881,-556.39,0.00029863,7]
[345171334,1734073902891,-500.0,0.00029863,7]
[345171335,1734073902903,-500.0,0.00029863,7]
[345171336,1734073902913,-500.0,0.00029863,7]
[345171337,1734073902923,-3110.15,0.00029863,7]
[345171338,1734073902933,-500.0,0.00029863,7]
[345171339,1734073902943,-500.0,0.00029863,7]
[345171340,1734073902952,-1541.34,0.00029863,7]
[345171341,1734073902961,-500.0,0.00029863,7]
[345171342,1734073902971,-513.11,0.00029863,7]
[345171343,1734073902980,-1760.13,0.00029863,7]
[345171344,1734073902990,-500.0,0.00029863,7]
[345171345,1734073903000,-2152.36,0.00029863,7]
[345171346,1734073903010,-844.94,0.00029863,7]
[345171347,1734073903020,-387.95828621,0.00029863,7]
[345171348,1734073903030,-500.0,0.00029863,7]
[345171349,1734073903040,-3513.32,0.00029863,7]
[345171350,1734073903049,-500.0,0.00029863,7]
[345171351,1734073903058,-794.79,0.00029863,7]
[345171352,1734073903067,-1214.56,0.00029863,7]
[345171353,1734073903077,-500.0,0.00029863,7]
[345171354,1734073903087,-565.88,0.00029863,7]
[345171355,1734073903097,-777.95,0.00029863,7]
[345171356,1734073903107,-302.90913937,0.0002987,2]
[345171357,1734073903118,-302.9394212,0.0002987,2]
[345171358,1734073903127,-162.4,0.000299,2]
[345171359,1734073903137,-4073.60600576,0.0002999,2]
[345171360,1734073903149,-2014.53488776,0.0003,2]
[345171361,1734073903160,-1026.74733784,0.0003,7]
[345171362,1734073903171,-995.0,0.0003,4]
[345171363,1734073903181,-1000.0,0.0003,120]
[345171364,1734073903191,-60241.14015179,0.0003,120]
[345171365,1734073903200,-989.40625949,0.0003,2]
[345171366,1734073903210,-4058.04,0.0003,120]
[345171367,1734073903220,-3176.0,0.0003,20]
[345171368,1734073903229,-168702.54149145,0.0003,120]
[345171369,1734073903238,-1220.3738782,0.0003,3]
[345171370,1734073903248,-283.98839015,0.0003,2]
[345171371,1734073903615,-500.0,0.00027671,7]
[345171372,1734073903625,-6954.56,0.00027945,7]
[345171373,1734073903635,-1447.45,0.00028219,7]
[345171374,1734073903645,-823.48,0.00029589,7]
[345171375,1734073903658,-79.80538073,0.0003,2]
[345171376,1734073903668,-671.05379232,0.0003,15]
[345171377,1734073903680,-431.85124171,0.0003,15]
[345171378,1734073903689,-160.0,0.0003,2]
[345171379,1734073903699,-833.64202834,0.0003,120]
[345171380,1734073904047,-1257.62175715,0.00027373,7]
[345171384,1734074446260,10000.0,0.000255,120]
[345171385,1734074460564,8140.0,0.000255,120]
[345171400,1734074872197,165.342998,0.00013973,2]
[345171403,1734074917340,14286.06573371,0.00025,120]
[345171414,1734074996877,166.7,0.000255,120]
[345171476,1734075032888,-208.10229699,0.00024899,2]
[345171478,1734075032897,-300.0,0.00024999,2]
[345171480,1734075032906,-300.0,0.00024999,2]
[345171482,1734075032916,-3499.87996023,0.00025,2]
[345171486,1734075032931,-6495.07706793,0.00025,2]
[345171489,1734075032940,-211.913761,0.00025639,2]
[345171491,1734075032950,-178.704955,0.00025667,2]
[345171494,1734075032959,-178.56,0.00025699,2]
[345171497,1734075032969,-4488.4445513,0.00025709,2]
[345171500,1734075032978,-250.0752185,0.00025746,2]
[345171503,1734075032987,-721.6,0.000264,2]
[345171505,1734075032997,-533.0,0.00026598,2]
[345171507,1734075033007,-2163.0,0.00026598,2]
[345171509,1734075033017,-2370.0,0.00026598,2]
[345171511,1734075033027,-9208.24444627,0.00027,2]
[345172059,1734075038688,-3473.97922109,0.00027,2]
[345172061,1734075038697,-3012.68441187,0.00027,2]
[345172063,1734075038707,-420.0,0.00027082,2]
[345172065,1734075038716,-484.36485613,0.00027296,2]
[345172068,1734075038725,-253.5877838,0.00027297,2]
[345172070,1734075038734,-152.528,0.000273,16]
[345172072,1734075038743,-1000.0,0.000273,2]
[345172074,1734075038752,-253.58778377,0.00027366,2]
[345172076,1734075038765,-500.0,0.00027373,2]
[345172078,1734075038774,-500.0,0.00027373,2]
[345172080,1734075038783,-580.12810142,0.00027373,2]
[345172082,1734075038792,-502.76244879,0.00027373,2]